bitfinex/quotes_ETHUSD_20250130
["timestamp","ask_amount","ask_price","bid_price","bid_amount"]
[1738205487782,3.17541,3149.2,3148.9,0.7887]
[1738205488299,0.04821653,3149.1,3148.9,0.7887]
[1738205488459,0.04821653,3149.1,3148.4,3.17612]
[1738205488662,3.1757,3149.0,3148.5,1.092712]
[1738205489001,3.22382937,3148.9,3148.5,1.092712]
[1738205490282,0.04809937,3148.9,3148.5,1.092712]
[1738205490476,3.17567,3149.0,3148.5,0.7751]
[1738205490800,0.04809937,3148.9,3148.5,0.7751]
[1738205492099,0.04809937,3148.9,3148.6,3.17591]
[1738205492404,3.17538,3149.3,3148.7,0.8042]
[1738205492588,0.04816266,3148.8,3148.7,0.8042]
[1738205492789,3.17544,3149.2,3148.7,1.202211]
[1738205492970,0.04816266,3148.8,3148.7,0.8042]
[1738205493496,3.17544,3149.2,3148.7,0.8042]
[1738205493676,0.04824233,3149.1,3148.7,0.8042]
[1738205494029,3.22377233,3149.1,3148.7,0.8042]
[1738205494170,0.04824233,3149.1,3148.7,0.8042]
[1738205494377,3.17581,3148.9,3148.4,0.7514]
[1738205494683,0.04820218,3148.8,3148.4,0.7514]
[1738205496169,0.04820218,3148.8,3148.4,3.9276]
[1738205497735,0.04820218,3148.8,3148.5,3.41299276]
[1738205497915,7.13624,3149.3,3148.6,3.17595]
[1738205498114,3.22369248,3149.2,3148.6,3.17595]
[1738205498304,3.22369248,3149.2,3148.5,3.41299276]
[1738205498603,3.22369248,3149.2,3148.5,4.14706104]
[1738205498843,3.22369248,3149.2,3148.6,0.23692276]
[1738205499131,3.22369248,3149.2,3148.6,3.41291276]
[1738205500114,0.04827248,3149.2,3148.7,3.17586]
[1738205500439,0.04827248,3149.2,3148.8,0.811]
[1738205500933,0.04822077,3149.1,3148.8,0.811]
[1738205501139,3.17534,3149.3,3148.8,0.811]
[1738205501340,0.04824733,3149.2,3148.8,0.811]
[1738205501702,3.17534,3149.3,3148.8,0.811]
[1738205502002,0.04824733,3149.2,3148.9,0.23692276]
[1738205502435,3.17534,3149.3,3148.9,0.23692276]
[1738205502635,0.04822077,3149.1,3148.9,0.23692276]
[1738205502846,3.17534,3149.3,3148.9,0.23692276]
[1738205503049,0.04823015,3149.0,3148.9,0.23692276]
[1738205503258,3.17534,3149.3,3148.9,0.69720826]
[1738205503406,0.04823015,3149.0,3148.8,3.98681]
[1738205503602,3.17497,3149.7,3149.0,3.17552]
[1738205503840,0.795,3149.8,3149.2,3.17532]
[1738205504041,3.96981,3149.8,3149.3,0.7555]
[1738205504723,3.96981,3149.8,3149.3,0.99229926]
[1738205505224,0.795,3149.8,3149.3,4.90188219]
[1738205505553,3.17478,3149.9,3149.3,4.90188219]
[1738205506144,6.34958,3149.9,3149.3,4.90188219]
[1738205506352,6.34958,3149.9,3149.3,4.66508293]
[1738205506644,3.17478,3149.9,3149.3,4.66508293]
[1738205506946,6.34955,3149.9,3149.4,0.52566433]
[1738205507143,3.17477,3149.9,3149.4,0.52566433]
[1738205507344,3.93132,3150.1,3149.5,3.17504]
[1738205507642,0.7568,3150.1,3149.5,3.17504]
[1738205507845,3.9313,3150.1,3149.6,0.37007043]
[1738205508019,3.17461,3150.0,3149.6,0.37007043]
[1738205508419,3.17461,3150.0,3149.4,0.52566433]
[1738205508752,3.17461,3150.0,3149.5,3.17509]
[1738205508946,0.7568,3150.1,3149.5,3.17509]
[1738205509345,3.93131,3150.1,3149.5,3.17509]
[1738205509648,3.17451,3150.1,3149.5,3.17509]
[1738205509816,3.17446,3150.2,3149.6,0.37007543]
[1738205510330,3.17451,3150.1,3149.6,0.37007543]
[1738205513249,3.17463,3150.0,3149.6,0.37007543]
[1738205513435,3.17463,3150.0,3149.4,0.52566433]
[1738205513834,3.17463,3150.0,3149.4,3.70086433]
[1738205514155,0.04890346,3149.9,3149.4,3.70086433]
[1738205517465,0.04890346,3149.9,3149.5,0.8213]
[1738205517626,0.04890346,3149.9,3149.8,3.9961]
[1738205517830,0.04890346,3149.9,3149.8,4.39571]
[1738205518022,3.17403,3150.6,3150.0,3.17451]
[1738205518228,7.13976,3150.8,3150.1,3.17448]
[1738205518452,0.04901472,3150.5,3150.2,0.7514]
[1738205518766,0.04898818,3150.4,3150.2,0.7514]
[1738205518949,0.04898818,3150.4,3150.2,3.92572]
[1738205519151,3.1735,3151.1,3150.5,3.17407]
[1738205519350,0.04932346,3151.0,3150.5,3.17407]
[1738205519733,0.04932346,3151.0,3150.6,3.1739]
[1738205519938,3.17344,3151.2,3150.7,0.7503]
[1738205520132,0.04953388,3151.1,3150.7,0.7503]
[1738205520374,3.22303388,3151.1,3150.7,0.7503]
[1738205520569,0.04953388,3151.1,3150.7,0.7503]
[1738205520772,3.17364,3151.0,3150.5,0.7814]
[1738205520972,3.95952,3150.8,3150.2,3.95579]
[1738205521367,0.0496324,3150.7,3150.2,3.95579]
[1738205522371,0.0496324,3150.7,3150.4,3.17411]
[1738205522574,0.0496324,3150.7,3150.5,3.95548]
[1738205522876,0.7857,3151.2,3150.6,3.17391]
[1738205523080,0.7857,3151.2,3150.7,3.17388]
[1738205523783,3.95911,3151.2,3150.6,0.395531]
[1738205524156,3.95911,3151.2,3150.6,3.569491]
[1738205524356,0.7857,3151.2,3150.7,3.17388]
[1738205524594,0.7857,3151.2,3150.6,3.569491]
[1738205524800,0.7857,3151.2,3150.4,3.17418]
[1738205524801,3.95915,3151.2,3150.4,3.17418]
[1738205525097,0.7767,3150.7,3150.3,0.7814]
[1738205527097,0.7767,3150.7,3150.2,3.17436]
[1738205527402,0.7767,3150.7,3150.3,3.17427]
[1738205527559,3.17367,3151.0,3150.3,3.17427]
[1738205527899,3.95004,3151.3,3150.6,3.17393]
[1738205528647,3.95004,3151.3,3150.7,3.17387]
[1738205529082,0.04879647,3151.2,3150.8,3.17371]
[1738205529502,0.7767,3151.3,3150.8,3.17371]
[1738205529652,0.04876995,3151.1,3150.8,3.17371]
[1738205529854,0.04879647,3151.2,3150.8,3.17371]
[1738205530080,0.04874343,3151.0,3150.8,3.17371]
[1738205530262,0.7767,3151.3,3150.8,3.808474]
[1738205530464,0.04871691,3150.9,3150.8,3.808474]
[1738205530743,0.7767,3151.5,3150.9,3.95061]
[1738205531610,0.7767,3151.5,3151.0,3.17354]
[1738205532285,0.7767,3151.5,3151.0,3.9494414]
[1738205533101,0.7767,3151.5,3151.0,0.7759014]
[1738205533287,0.7767,3151.5,3151.1,3.17349]
[1738205533488,3.98021,3151.7,3151.1,3.17349]
[1738205533988,3.98021,3151.7,3151.0,3.17358]
[1738205533989,3.17302,3151.6,3151.0,3.17358]
[1738205534172,3.98021,3151.7,3151.0,3.17358]
[1738205534357,7.15319,3151.7,3151.0,3.17358]
[1738205534576,3.98021,3151.7,3151.1,0.712427]
[1738205534813,3.98021,3151.7,3150.9,3.95069]
[1738205535018,3.1731,3151.5,3150.9,3.95069]
[1738205535687,3.98021,3151.7,3151.1,3.17348]
[1738205536810,3.98021,3151.7,3151.2,3.17338]
[1738205537107,3.17269,3151.9,3151.4,0.7819]
[1738205537408,3.1728,3151.8,3151.4,0.7819]
[1738205537615,3.17269,3151.9,3151.1,3.96488]
[1738205537802,3.17269,3151.9,3151.2,0.396488]
[1738205538114,3.1729,3151.7,3151.2,0.396488]
[1738205538618,3.94479,3151.6,3151.2,0.396488]
[1738205538819,3.94479,3151.6,3150.9,3.96506]
[1738205539178,3.94479,3151.6,3151.0,3.17359]
[1738205541109,3.94479,3151.6,3151.0,3.17352]
[1738205542423,3.17327,3151.4,3150.8,3.17378]
[1738205542715,3.17325,3151.4,3150.8,3.17378]
[1738205542889,3.17325,3151.4,3150.9,0.396788]
[1738205543089,3.94483,3151.6,3151.0,3.9676]
[1738205543090,3.17303,3151.6,3151.0,3.9676]
[1738205544017,0.04895976,3151.5,3151.0,3.9676]
[1738205544208,0.04895976,3151.5,3151.1,3.17347]
[1738205544515,0.04895976,3151.5,3151.2,0.714107]
[1738205544919,0.04895976,3151.5,3151.2,3.887467]
[1738205545089,0.04895976,3151.5,3151.4,0.7676]
[1738205545280,3.17282,3151.8,3151.4,0.7676]
[1738205545482,0.04895976,3151.5,3151.4,0.7676]
[1738205545983,3.17282,3151.8,3151.4,0.7676]
[1738205546183,0.04895976,3151.5,3151.4,0.7676]
[1738205546377,3.17282,3151.8,3151.4,1.2330977]
[1738205546580,0.04910964,3151.7,3151.3,3.17327]
[1738205546811,3.17282,3151.8,3151.2,0.714107]
[1738205546976,0.04908314,3151.6,3151.2,0.714107]
[1738205547176,3.17282,3151.8,3151.2,0.714107]
[1738205547376,3.22205964,3151.7,3151.2,0.714107]
[1738205548213,3.17317,3151.5,3150.9,4.325128]
[1738205548414,3.17299,3151.6,3151.0,3.17358]
[1738205548614,0.04903011,3151.4,3151.1,3.17342]
[1738205548784,3.1729,3151.7,3151.1,3.17342]
[1738205549181,0.04908314,3151.6,3151.1,3.17342]
[1738205549398,0.04908314,3151.6,3151.1,3.6059108]
[1738205549606,0.04908314,3151.6,3151.2,0.7908]
[1738205550005,0.04908314,3151.6,3151.2,3.96416]
[1738205550292,0.04908314,3151.6,3151.2,0.7908]
[1738205552616,0.04908314,3151.6,3150.9,7.566078]
[1738205552805,0.7978,3151.4,3151.0,0.7566078]
[1738205553189,0.04899525,3151.3,3151.0,0.7566078]
[1738205553389,0.7978,3151.6,3151.0,3.9301378]
[1738205553590,0.04741308,3151.5,3151.0,0.7566078]
[1738205553792,0.04741308,3151.5,3151.1,0.47522378]
[1738205555824,0.04741308,3151.5,3151.1,3.64871378]
[1738205556022,0.04741308,3151.5,3151.2,3.97904]
[1738205556321,3.99669,3151.9,3151.2,3.97904]
[1738205556510,0.04738657,3151.4,3151.2,3.97904]
[1738205556820,3.1728,3151.8,3151.3,0.76277538]
[1738205557026,3.1728,3151.8,3151.2,3.97904]
[1738205558328,0.824,3151.9,3151.2,0.8057]
[1738205558498,3.17299,3151.6,3151.0,1.05252029]
[1738205559029,0.04741308,3151.5,3151.0,1.05252029]
[1738205559214,0.04741308,3151.5,3151.1,0.42261703]
[1738205559529,0.81281308,3151.5,3151.1,0.42261703]
[1738205561034,0.04741308,3151.5,3151.1,0.42261703]
[1738205561696,0.04741308,3151.5,3151.2,0.23608949]
[1738205563635,0.04741308,3151.5,3151.1,0.42261703]
[1738205564836,3.17319,3151.4,3150.9,0.37758717]
[1738205565027,0.7981,3151.3,3150.9,0.37758717]
[1738205565225,0.84546006,3151.3,3150.9,0.37758717]
[1738205565428,0.84546006,3151.3,3151.0,0.23620625]
[1738205567043,0.84546006,3151.3,3151.1,0.23620625]
[1738205567242,3.17339,3151.2,3151.1,0.23620625]
[1738205567408,3.94649,3151.2,3151.1,0.23620625]
[1738205567608,3.99390968,3151.2,3151.1,0.23620625]
[1738205568452,0.8222,3151.0,3150.4,0.23620625]
[1738205568940,0.04724682,3150.9,3150.4,0.23620625]
[1738205569155,0.04724682,3150.9,3150.4,0.65676288]
[1738205569535,0.04724682,3150.9,3150.6,3.17399]
[1738205569741,0.04724682,3150.9,3150.8,3.17379]
[1738205569910,0.04724682,3150.9,3150.8,3.99459]
[1738205570246,0.04720735,3150.9,3150.6,3.17391]
[1738205570446,0.04720735,3150.9,3150.7,0.394201]
[1738205570635,0.8034,3151.2,3150.7,0.394201]
[1738205570836,0.04718083,3150.8,3150.6,3.17391]
[1738205571049,0.8034,3151.2,3150.6,3.17391]
[1738205571226,0.04715431,3150.7,3150.6,3.17391]
[1738205571425,0.8034,3151.2,3150.6,3.17391]
[1738205571635,0.04715431,3150.7,3150.6,3.17391]
[1738205571829,3.17349,3151.1,3150.6,0.67686466]
[1738205572049,0.04720096,3150.7,3150.4,3.59473663]
[1738205572235,3.17349,3151.1,3150.4,3.59473663]
[1738205572755,0.04726617,3151.0,3150.5,3.17409]
[1738205572955,0.04726617,3151.0,3150.6,3.17399]
[1738205573157,0.8034,3151.2,3150.6,3.17399]
[1738205573565,0.04729269,3151.1,3150.6,6.3479]
[1738205573766,0.04729269,3151.1,3150.7,3.80868]
[1738205573974,0.04729269,3151.1,3150.7,3.17389]
[1738205575351,0.04729269,3151.1,3150.4,3.59470663]
[1738205575646,0.04729269,3151.1,3150.6,3.17397]
[1738205578166,0.04729269,3151.1,3150.6,6.34794]
[1738205578333,0.04729269,3151.1,3150.6,3.17397]
[1738205579249,0.04729269,3151.1,3150.7,4.00337]
[1738205579751,0.763,3151.4,3150.7,4.00337]
[1738205579956,0.04716928,3151.0,3150.7,4.00337]
[1738205580137,0.763,3151.4,3150.7,4.00337]
[1738205580339,0.04714276,3150.9,3150.7,4.00337]
[1738205580659,3.93626,3151.4,3150.8,0.78542097]
[1738205580861,3.93626,3151.4,3150.7,4.00337]
[1738205583475,3.93626,3151.4,3150.7,3.17387]
[1738205584876,3.1733,3151.3,3150.7,3.17387]
[1738205585172,3.93626,3151.4,3150.7,3.17387]
[1738205587096,0.763,3151.4,3150.9,3.17366]
[1738205587388,0.763,3151.4,3151.0,0.317366]
[1738205589106,0.04725601,3151.3,3151.1,3.17342]
[1738205589267,0.8013,3151.6,3151.1,3.17342]
[1738205589468,0.04726179,3151.2,3151.1,3.17342]
[1738205589694,0.8013,3151.6,3151.1,3.17342]
[1738205589900,0.04726179,3151.2,3151.1,3.8398586]
[1738205590100,0.8013,3151.6,3151.1,3.8398586]
[1738205590296,0.04726179,3151.2,3151.1,3.8398586]
[1738205590468,0.8013,3151.6,3151.1,3.8398586]
[1738205590669,0.04726179,3151.2,3151.1,3.8398586]
[1738205590882,0.8013,3151.6,3151.1,3.8398586]
[1738205591085,0.8013,3151.6,3151.2,0.41572246]
[1738205591454,0.801,3151.5,3150.5,3.17403]
[1738205591801,0.801,3151.0,3150.2,0.7741]
[1738205592098,3.9746,3151.0,3150.3,3.17423]
[1738205592405,3.9746,3151.0,3150.3,3.41025991]
[1738205592585,3.9746,3151.0,3150.4,3.59261599]
[1738205594904,3.17372,3150.9,3150.4,0.41843599]
[1738205595055,3.9746,3151.0,3150.2,3.17434]
[1738205595254,0.7999,3150.7,3150.2,3.17434]
[1738205595458,0.7999,3150.7,3150.0,3.96157]
[1738205595689,0.62152704,3151.3,3149.2,4.33833543]
[1738205595690,0.8083,3150.5,3149.8,3.17474]
[1738205596177,3.98253,3150.4,3149.8,3.17474]
[1738205596475,0.04665342,3150.3,3149.8,3.17474]
[1738205597010,0.8083,3150.2,3149.9,0.23617619]
[1738205597375,3.9829,3150.0,3149.9,0.23617619]
[1738205597805,4.02934541,3150.0,3149.9,0.23617619]
[1738205598351,0.85474541,3150.0,3149.9,0.23617619]
[1738205598516,0.85474541,3150.0,3149.4,3.1751]
[1738205600568,0.85474541,3150.0,3149.6,3.17499]
[1738205601111,0.85474541,3150.0,3149.4,3.1751]
[1738205601274,0.85474541,3150.0,3149.4,6.35023]
[1738205601481,0.85474541,3150.0,3149.4,3.1751]
[1738205601912,3.22106541,3150.0,3149.2,3.17534]
[1738205602068,0.8117,3149.7,3148.9,3.17562]
[1738205602269,3.17503,3149.6,3149.0,3.17554]
[1738205602463,0.04616606,3149.6,3149.2,3.17531]
[1738205602673,0.04616606,3149.6,3149.4,3.17517]
[1738205603185,0.04616606,3149.6,3149.2,6.35065]
[1738205603572,0.04616606,3149.6,3149.3,3.17528]
[1738205604602,0.04616606,3149.6,3149.4,3.17519]
[1738205607322,0.04616606,3149.6,3149.5,3.1751]
[1738205607531,0.8332,3150.0,3149.7,3.17485]
[1738205608745,0.809,3150.3,3149.7,3.17485]
[1738205608896,0.809,3150.3,3149.5,3.1751]
[1738205609097,0.809,3150.3,3149.7,3.17483]
[1738205610045,3.98331,3150.3,3149.7,3.17483]
[1738205610214,3.1744,3150.2,3149.5,3.1751]
[1738205610552,0.7953,3150.1,3149.6,3.17499]
[1738205615667,0.7953,3150.1,3149.5,3.1751]
[1738205615899,0.7953,3150.1,3149.7,3.17488]
[1738205619045,0.04581867,3150.0,3149.7,3.17488]
[1738205621109,0.04581867,3150.0,3149.9,3.1747]
[1738205621404,0.7917,3150.3,3150.0,3.17457]
[1738205621700,0.7777,3150.7,3150.1,3.17442]
[1738205622072,0.7777,3150.7,3150.2,3.17432]
[1738205622260,0.7777,3150.7,3150.3,3.17429]
[1738205623062,0.7777,3150.7,3150.4,3.17419]
[1738205623294,0.8065,3151.1,3150.5,3.17405]
[1738205623661,0.8065,3151.1,3150.8,3.17379]
[1738205624095,0.8065,3151.1,3150.7,3.17387]
[1738205625396,3.17323,3151.4,3150.7,3.17387]
[1738205625397,0.8065,3151.5,3151.1,3.17348]
[1738205625562,0.8065,3151.5,3150.9,6.34726]
[1738205625764,0.8065,3151.5,3151.0,3.17358]
[1738205625965,0.8065,3151.5,3151.1,3.17348]
[1738205626300,0.8065,3151.5,3151.0,3.17352]
[1738205627172,0.04340873,3151.4,3151.0,3.17352]
[1738205629303,0.7946,3151.3,3150.6,3.17395]
[1738205629473,3.17346,3151.2,3150.6,3.17395]
[1738205629802,3.21710288,3151.2,3150.6,3.17395]
[1738205631305,3.21710288,3151.2,3150.4,3.17416]
[1738205631306,3.92759,3151.1,3150.4,6.34828]
[1738205631504,3.97120636,3151.1,3150.4,6.34828]
[1738205631808,3.97120636,3151.1,3150.5,3.17409]
[1738205632182,0.79771636,3151.1,3150.5,3.17409]
[1738205632886,0.79771636,3151.1,3150.6,3.17391]
[1738205634997,0.79771636,3151.1,3150.6,3.491301]
[1738205635200,0.79771636,3151.1,3150.8,3.17379]
[1738205636318,0.79771636,3151.1,3150.6,6.665231]
[1738205636806,0.79771636,3151.1,3150.6,3.491301]
[1738205637007,0.79771636,3151.1,3150.7,3.17382]
[1738205637193,0.79771636,3151.1,3150.7,3.8403321]
[1738205640323,0.79771636,3151.1,3150.7,0.6665121]
[1738205640612,0.79771636,3151.1,3150.6,0.317391]
[1738205640789,0.79771636,3151.1,3150.6,3.491371]
[1738205641818,0.79771636,3151.1,3150.6,0.317391]
[1738205642006,0.79771636,3151.1,3150.7,3.17382]
[1738205645624,0.04361636,3151.1,3150.9,3.17363]
[1738205645929,0.8225,3151.4,3151.0,0.317363]
[1738205647240,0.0075,3151.9,3150.6,0.317391]
[1738205647444,0.823,3151.1,3150.3,3.98836]
[1738205647648,3.95119,3150.9,3150.4,3.17414]
[1738205648508,0.7775,3150.9,3150.4,3.17414]
[1738205649225,0.04392093,3150.8,3150.4,3.17414]
[1738205649934,0.04392093,3150.8,3150.2,3.17439]
[1738205650110,0.04392093,3150.8,3150.3,0.395239]
[1738205650315,0.04392093,3150.8,3150.2,3.17439]
[1738205650316,3.9598,3150.7,3150.2,3.17439]
[1738205650546,0.7859,3150.7,3150.2,3.17439]
[1738205650847,0.04381404,3150.6,3150.2,3.17439]
[1738205651052,0.04381404,3150.6,3150.5,3.17409]
[1738205651225,0.04381404,3150.6,3150.5,4.257399]
[1738205651426,0.7581,3150.9,3150.6,3.17392]
[1738205651749,0.04383478,3150.8,3150.6,3.17392]
[1738205651945,0.04383478,3150.8,3150.5,4.49345372]
[1738205652147,0.7922,3151.2,3150.7,3.17389]
[1738205653466,3.96565,3151.2,3150.5,3.491499]
[1738205653626,0.7922,3151.2,3150.5,3.491499]
[1738205653827,0.7922,3151.2,3150.6,3.5230699]
[1738205655057,0.7922,3151.2,3150.7,0.23594383]
[1738205656258,3.9656,3151.2,3150.6,3.5230699]
[1738205656562,3.9656,3151.2,3150.6,3.17392]
[1738205658858,0.7922,3151.2,3150.6,3.17392]
[1738205659037,3.17349,3151.1,3150.6,3.17392]
[1738205659235,0.7769,3151.0,3150.4,3.17418]
[1738205659758,0.7769,3151.0,3150.7,0.23602842]
[1738205660323,3.95056,3151.0,3150.7,0.23602842]
[1738205661062,3.95056,3151.0,3150.4,3.17418]
[1738205661266,3.95056,3151.0,3150.4,3.885624]
[1738205662327,3.95056,3151.0,3150.5,0.23611099]
[1738205663766,3.95056,3151.0,3150.6,0.23611099]
[1738205664164,0.04385772,3150.9,3150.6,0.23611099]
[1738205665144,0.04385772,3150.9,3150.4,3.885624]
[1738205666373,0.04385772,3150.9,3150.5,0.4651524]
[1738205666536,0.04385772,3150.9,3150.6,3.17399]
[1738205667774,0.04385772,3150.9,3150.7,0.2361271]
[1738205669189,0.04385772,3150.9,3150.6,3.17399]
[1738205671192,0.04385772,3150.9,3150.7,0.23601493]
[1738205672391,0.04385772,3150.9,3150.6,3.17399]
[1738205672693,0.04385772,3150.9,3150.5,3.6392324]
[1738205672860,0.04385772,3150.9,3150.3,0.7659]
[1738205673058,0.782,3150.8,3150.3,3.17423]
[1738205673292,0.04364763,3150.7,3150.3,3.17423]
[1738205673515,0.782,3150.8,3150.3,3.17423]
[1738205673699,0.0436211,3150.6,3150.4,0.23613199]
[1738205674001,0.782,3150.8,3150.4,0.23613199]
[1738205674161,0.04359457,3150.5,3150.4,0.23613199]
[1738205674366,0.782,3150.8,3150.4,0.89460319]
[1738205674979,0.04364763,3150.7,3150.4,4.06879319]
[1738205675199,0.782,3150.8,3150.4,4.06879319]
[1738205675404,0.04360673,3150.6,3150.4,4.06879319]
[1738205675601,0.782,3150.8,3150.4,4.06879319]
[1738205675795,0.0435802,3150.5,3150.4,3.8326612]
[1738205676394,0.782,3150.8,3150.4,3.8326612]
[1738205676598,0.0435802,3150.5,3150.4,3.17419]
[1738205676803,0.782,3150.8,3150.4,3.17419]
[1738205676969,0.0435802,3150.5,3150.4,3.17419]
[1738205677169,0.782,3150.8,3150.4,3.17419]
[1738205677369,0.0435802,3150.5,3150.4,3.17419]
[1738205677599,0.782,3150.8,3150.4,3.809044]
[1738205677793,0.0435802,3150.5,3150.4,3.809044]
[1738205677994,0.782,3150.8,3150.4,3.809044]
[1738205678483,0.04363326,3150.7,3150.5,3.17407]
[1738205678681,0.7875,3151.0,3150.5,3.17407]
[1738205678871,0.04368632,3150.9,3150.5,3.17407]
[1738205679973,0.04368632,3150.9,3150.4,4.17045653]
[1738205680325,0.04368632,3150.9,3150.6,3.17393]
[1738205680600,0.04368632,3150.9,3150.6,6.34785]
[1738205680809,0.7875,3151.2,3150.6,6.34785]
[1738205681033,0.04364543,3150.8,3150.7,0.23606653]
[1738205681203,0.7875,3151.2,3150.7,0.23606653]
[1738205681409,0.04364543,3150.8,3150.7,0.23606653]
[1738205681569,3.9609,3151.2,3150.7,0.23606653]
[1738205681772,0.04364543,3150.8,3150.7,0.23606653]
[1738205682108,0.04364543,3150.8,3150.6,3.17392]
[1738205682276,3.9609,3151.2,3150.6,3.94060434]
[1738205682479,0.04372501,3151.1,3150.6,3.17392]
[1738205685398,0.04372501,3151.1,3150.7,3.17388]
[1738205687497,3.96089,3151.2,3150.7,3.17388]
[1738205687722,0.04372501,3151.1,3150.7,3.17388]
[1738205689636,0.04372501,3151.1,3150.5,4.58919736]
[1738205690027,3.21723501,3151.1,3150.5,3.17402]
[1738205690331,0.04374515,3151.0,3150.5,3.17402]
[1738205692635,0.04374515,3151.0,3150.6,3.17392]
[1738205693136,0.04374734,3150.9,3150.7,3.17386]
[1738205693498,3.9609,3151.2,3150.7,3.17386]
[1738205693736,0.04382838,3151.1,3150.7,3.17386]
[1738205694220,0.04382838,3151.1,3150.5,5.49740844]
[1738205694424,0.04382838,3151.1,3150.6,0.68161718]
[1738205695403,0.04382838,3151.1,3150.7,3.17388]
[1738205695936,0.04382838,3151.1,3150.9,1.41517736]
[1738205696143,0.04382838,3151.1,3151.0,3.17359]
[1738205696318,0.8048,3151.5,3151.0,3.17359]
[1738205696639,0.04404892,3151.4,3151.1,4.03164774]
[1738205703811,0.04404892,3151.4,3151.3,3.17329]
[1738205704013,0.7522,3152.0,3151.4,3.17311]
[1738205704219,3.92483,3152.0,3151.4,3.17311]
[1738205704528,3.17269,3151.9,3151.4,0.53689874]
[1738205704726,3.17269,3151.9,3151.3,2.19587736]
[1738205705426,3.17269,3151.9,3151.3,5.36914736]
[1738205706751,3.17251,3152.1,3151.7,1.41517736]
[1738205707250,3.17251,3152.1,3151.5,4.58824736]
[1738205707448,3.17251,3152.1,3151.6,0.45882474]
[1738205707651,3.1726,3152.0,3151.6,0.45882474]
[1738205707955,3.1727,3151.9,3151.3,5.36909736]
[1738205708649,3.17251,3152.1,3151.1,4.03164774]
[1738205708650,6.34584,3151.7,3151.1,0.85816774]
[1738205708849,3.17349,3151.1,3150.5,4.58926736]
[1738205709151,0.04302158,3151.0,3150.5,5.42025736]
[1738205709345,0.04302158,3151.0,3150.3,3.17425]
[1738205709346,3.1732,3151.4,3150.8,0.831]
[1738205709538,0.04139561,3150.9,3150.8,4.00474]
[1738205709726,3.1732,3151.4,3150.8,0.831]
[1738205709727,3.17332,3151.3,3150.8,0.831]
[1738205709927,0.83891441,3151.2,3150.8,0.831]
[1738205710262,3.17357,3151.1,3150.5,2.24617736]
[1738205710480,3.17359,3151.0,3150.4,3.17418]
[1738205710619,3.21361359,3151.0,3150.4,3.95055374]
[1738205711250,0.04002359,3151.0,3150.5,1.41517736]
[1738205712117,0.04002359,3151.0,3150.5,4.58920736]
[1738205712652,0.04002359,3151.0,3150.5,3.17403]
[1738205712815,0.04002359,3151.0,3150.4,3.95055374]
[1738205712816,0.04002359,3151.0,3150.6,3.17393]
[1738205713221,3.97229,3151.2,3150.6,3.17393]
[1738205713742,0.03987744,3151.1,3150.6,3.17393]
[1738205717563,0.7566,3150.9,3150.2,3.17433]
[1738205717864,3.93031,3150.9,3150.0,3.95997]
[1738205718063,0.03979788,3150.8,3150.2,3.17433]
[1738205718618,0.03979788,3150.8,3150.2,6.34867]
[1738205719280,0.03979788,3150.8,3150.3,3.17426]
[1738205721529,0.03979788,3150.8,3150.5,3.17409]
[1738205724362,0.03979788,3150.8,3150.3,3.17426]
[1738205725533,0.03979788,3150.8,3150.4,3.17419]
[1738205725868,0.03979788,3150.8,3150.4,3.17417]
[1738205726397,0.03979788,3150.8,3150.3,3.17426]
[1738205726689,3.92751,3150.7,3150.1,3.17447]
[1738205726989,0.03668449,3150.6,3150.1,3.17447]
[1738205727397,3.92751,3150.7,3150.1,3.17447]
[1738205727693,0.03665796,3150.5,3150.1,3.17447]
[1738205727855,0.03668449,3150.6,3150.1,3.17447]
[1738205728063,0.7715,3150.3,3150.1,3.17447]
[1738205728498,0.03657837,3150.2,3150.1,3.17447]
[1738205728878,0.7715,3150.3,3150.1,3.17447]
[1738205729076,0.03657837,3150.2,3150.1,3.17447]
[1738205729375,0.7715,3150.3,3150.1,3.17447]
[1738205729597,0.03654238,3150.2,3150.1,3.17447]
[1738205730002,0.7715,3150.3,3150.1,3.17447]
[1738205730163,0.03654238,3150.2,3150.1,3.17447]
[1738205730596,0.7715,3150.3,3150.1,3.17447]
[1738205730898,0.03654238,3150.2,3150.1,3.17447]
[1738205731097,0.03654238,3150.2,3150.1,3.809386]
[1738205731301,0.7541,3150.8,3150.3,3.1743]
[1738205731680,0.03667503,3150.7,3150.3,3.1743]
[1738205732196,0.0366485,3150.6,3150.3,3.1743]
[1738205732582,3.92792,3150.8,3150.3,3.1743]
[1738205732764,0.03662197,3150.5,3150.3,3.1743]
[1738205732968,3.92792,3150.8,3150.3,3.1743]
[1738205733168,0.03659544,3150.4,3150.3,3.1743]
[1738205733370,3.92792,3150.8,3150.3,3.1743]
[1738205733572,0.03659544,3150.4,3150.3,3.1743]
[1738205733777,3.92792,3150.8,3150.3,3.1743]
[1738205734007,0.03659544,3150.4,3150.3,3.1743]
[1738205734207,3.92792,3150.8,3150.3,3.1743]
[1738205734508,0.03659544,3150.4,3150.3,3.1743]
[1738205734714,3.92792,3150.8,3150.1,6.34889]
[1738205735009,3.92792,3150.8,3150.1,3.17442]
[1738205735311,0.03665503,3150.7,3150.1,3.17442]
[1738205735514,0.03665503,3150.7,3150.2,3.17433]
[1738205735696,0.03665503,3150.7,3150.3,3.17428]
[1738205736008,0.7541,3150.8,3150.3,3.17428]
[1738205736190,0.0366285,3150.6,3150.3,3.17428]
[1738205736391,0.03665503,3150.7,3150.3,3.17428]
[1738205736615,0.03660197,3150.5,3150.3,3.17428]
[1738205736819,0.7541,3150.8,3150.3,3.17428]
[1738205736997,0.03652148,3150.4,3150.3,3.17428]
[1738205737312,0.7541,3150.8,3150.3,3.17428]
[1738205737509,0.03652148,3150.4,3150.3,3.17428]
[1738205737711,0.7541,3150.8,3150.3,3.17428]
[1738205737917,0.03649748,3150.4,3150.3,4.66879]
[1738205738114,0.7674,3151.1,3150.3,4.66879]
[1738205738115,0.7674,3151.1,3150.9,3.17361]
[1738205738319,0.7674,3151.5,3150.8,0.7818]